[Event "Late-Titled-Tuesday-Blitz-May-07-2024"]
[Site "Chess.com"]
[Date "2024.05.07"]
[Round "4"]
[White "Kiborg95"]
[Black "LikeWater"]
[Result "0-1"]
[WhiteElo "2819"]
[BlackElo "2689"]
[TimeControl "180+1"]
[EndTime "14:39:51 PDT"]
[Termination "LikeWater won by resignation"]

1. e4 {[%clk 0:03:00.9]} 1... e5 {[%clk 0:02:58.5]} 2. Nf3 {[%clk 0:03:00.9]}
2... d6 {[%clk 0:02:58.1]} 3. d4 {[%clk 0:02:59.7]} 3... exd4 {[%clk 0:02:59]}
4. Nxd4 {[%clk 0:02:59.2]} 4... Nf6 {[%clk 0:02:59]} 5. Nc3 {[%clk 0:02:58.6]}
5... Be7 {[%clk 0:02:59.6]} 6. g3 {[%clk 0:02:50]} 6... O-O {[%clk 0:02:56.9]}
7. Bg2 {[%clk 0:02:50.2]} 7... c6 {[%clk 0:02:56.7]} 8. O-O {[%clk 0:02:49.2]}
8... Na6 {[%clk 0:02:55.2]} 9. h3 {[%clk 0:02:47.9]} 9... Nc5 {[%clk 0:02:54.9]}
10. g4 {[%clk 0:02:44.2]} 10... a5 {[%clk 0:02:53.1]} 11. a4 {[%clk 0:02:42.7]}
11... Re8 {[%clk 0:02:42.6]} 12. Nde2 {[%clk 0:02:38.2]} 12... Nfd7 {[%clk
0:02:31.4]} 13. f4 {[%clk 0:02:28.1]} 13... Bf8 {[%clk 0:02:25]} 14. b3 {[%clk
0:02:25.3]} 14... g6 {[%clk 0:01:52.9]} 15. Kh1 {[%clk 0:02:21.1]} 15... Qh4
{[%clk 0:01:46.6]} 16. Be3 {[%clk 0:02:21.3]} 16... Bg7 {[%clk 0:01:33.4]} 17.
Qxd6 {[%clk 0:02:11.3]} 17... Nxe4 {[%clk 0:01:23.3]} 18. Nxe4 {[%clk
0:02:04.9]} 18... Rxe4 {[%clk 0:01:18.4]} 19. Bf2 {[%clk 0:02:01.2]} 19... Qe7
{[%clk 0:01:16]} 20. Qxe7 {[%clk 0:02:01.5]} 20... Rxe7 {[%clk 0:01:16.9]} 21.
Rae1 {[%clk 0:02:01.9]} 21... Nf6 {[%clk 0:01:08.5]} 22. Nd4 {[%clk 0:01:49.4]}
22... Rxe1 {[%clk 0:00:52]} 23. Rxe1 {[%clk 0:01:50.3]} 23... Bd7 {[%clk
0:00:51]} 24. c4 {[%clk 0:01:37.8]} 24... Re8 {[%clk 0:00:43]} 25. Rxe8+ {[%clk
0:01:36.3]} 25... Nxe8 {[%clk 0:00:43.7]} 26. Ne2 {[%clk 0:01:34.1]} 26... Bf8
{[%clk 0:00:37]} 27. Bb6 {[%clk 0:01:22.8]} 27... Bb4 {[%clk 0:00:37.1]} 28. Nc1
{[%clk 0:01:20]} 28... Nd6 {[%clk 0:00:28.1]} 29. Nd3 {[%clk 0:01:18]} 29... Nc8
{[%clk 0:00:19.5]} 30. Bc7 {[%clk 0:01:14.5]} 30... Kf8 {[%clk 0:00:14.7]} 31.
Nxb4 {[%clk 0:01:08.4]} 31... axb4 {[%clk 0:00:15.6]} 32. Ba5 {[%clk 0:01:09]}
32... f5 {[%clk 0:00:09.2]} 33. Bxb4+ {[%clk 0:01:08.1]} 33... Kf7 {[%clk
0:00:09.9]} 34. g5 {[%clk 0:01:06.5]} 34... Be6 {[%clk 0:00:09.6]} 35. a5 {[%clk
0:01:04.6]} 35... Ke8 {[%clk 0:00:09.6]} 36. Bc5 {[%clk 0:01:04]} 36... Kd7
{[%clk 0:00:09.3]} 37. Kg1 {[%clk 0:01:03]} 37... Nd6 {[%clk 0:00:09.9]} 38. Kf1
{[%clk 0:00:48]} 38... Ne4 {[%clk 0:00:10]} 39. Bd4 {[%clk 0:00:48.3]} 39...
Nd2+ {[%clk 0:00:10.1]} 40. Ke2 {[%clk 0:00:46.5]} 40... Nxb3 {[%clk 0:00:11]}
41. Bb6 {[%clk 0:00:44.8]} 41... Bxc4+ {[%clk 0:00:09.9]} 42. Ke3 {[%clk
0:00:45.6]} 42... Bd5 {[%clk 0:00:06.7]} 43. Bf1 {[%clk 0:00:45.8]} 43... Kd6
{[%clk 0:00:04.1]} 44. h4 {[%clk 0:00:40.5]} 44... c5 {[%clk 0:00:04.4]} 45. Bb5
{[%clk 0:00:35.6]} 45... Nd4 {[%clk 0:00:04.2]} 46. Bd3 {[%clk 0:00:32.4]} 46...
Ne6 {[%clk 0:00:03.4]} 47. h5 {[%clk 0:00:29.1]} 47... c4 {[%clk 0:00:03.9]} 48.
Bc2 {[%clk 0:00:29.3]} 48... Nc5 {[%clk 0:00:03]} 49. h6 {[%clk 0:00:25.3]}
49... Bf7 {[%clk 0:00:03.3]} 50. Bd1 {[%clk 0:00:20.7]} 50... Kc6 {[%clk
0:00:03]} 51. Bf3+ {[%clk 0:00:20.4]} 51... Bd5 {[%clk 0:00:03.2]} 52. Bd1
{[%clk 0:00:20.1]} 52... Nb3 {[%clk 0:00:02.7]} 53. Bc2 {[%clk 0:00:19.3]} 53...
Be6 {[%clk 0:00:02.6]} 54. Bd1 {[%clk 0:00:17.3]} 54... Kb5 {[%clk 0:00:03.1]}
55. Bf3 {[%clk 0:00:15.6]} 55... Nxa5 {[%clk 0:00:03.6]} 56. Bxa5 {[%clk
0:00:15.4]} 56... Kxa5 {[%clk 0:00:04.5]} 57. Bxb7 {[%clk 0:00:15.8]} 57... Kb4
{[%clk 0:00:05.1]} 58. Bc6 {[%clk 0:00:15.6]} 58... Bf7 {[%clk 0:00:03.7]} 59.
Kd4 {[%clk 0:00:14.4]} 59... c3 {[%clk 0:00:04.2]} 60. Kd3 {[%clk 0:00:14.7]}
60... Kb3 {[%clk 0:00:03.9]} 0-1

[Event "Late-Titled-Tuesday-Blitz-May-07-2024"]
[Site "Chess.com"]
[Date "2024.05.07"]
[Round "4"]
[White "Dzidzik2203"]
[Black "only_strong_moves"]
[Result "0-1"]
[WhiteElo "2446"]
[BlackElo "2696"]
[TimeControl "180+1"]
[EndTime "14:39:52 PDT"]
[Termination "only_strong_moves won by checkmate"]

1. b3 {[%clk 0:03:00.9]} 1... e5 {[%clk 0:02:59.7]} 2. Bb2 {[%clk 0:03:01.8]}
2... Nc6 {[%clk 0:03:00]} 3. e3 {[%clk 0:03:01.2]} 3... d5 {[%clk 0:03:00.5]} 4.
Bb5 {[%clk 0:03:01.1]} 4... Bd6 {[%clk 0:03:01]} 5. f4 {[%clk 0:02:59.7]} 5...
Qe7 {[%clk 0:03:00.3]} 6. Nf3 {[%clk 0:02:59.2]} 6... Bg4 {[%clk 0:02:46.8]} 7.
O-O {[%clk 0:02:54.2]} 7... Nf6 {[%clk 0:02:46.2]} 8. Bxc6+ {[%clk 0:02:46]}
8... bxc6 {[%clk 0:02:45.9]} 9. fxe5 {[%clk 0:02:44.7]} 9... Bxe5 {[%clk
0:02:46]} 10. Bxe5 {[%clk 0:02:40.4]} 10... Bxf3 {[%clk 0:02:44.9]} 11. Qxf3
{[%clk 0:02:41.3]} 11... Qxe5 {[%clk 0:02:44.6]} 12. Nc3 {[%clk 0:02:41.7]}
12... O-O {[%clk 0:02:44.3]} 13. Qf4 {[%clk 0:02:37.5]} 13... Qe7 {[%clk
0:02:42.3]} 14. Rae1 {[%clk 0:02:35.1]} 14... Rad8 {[%clk 0:02:41.4]} 15. Qa4
{[%clk 0:02:29.5]} 15... c5 {[%clk 0:02:32.2]} 16. Qxa7 {[%clk 0:02:29.5]} 16...
Ra8 {[%clk 0:02:19.6]} 17. Qb7 {[%clk 0:02:25.7]} 17... Qd6 {[%clk 0:02:19.4]}
18. Rxf6 {[%clk 0:02:21.2]} 18... Qxf6 {[%clk 0:02:18.7]} 19. Nxd5 {[%clk
0:02:15.7]} 19... Qe5 {[%clk 0:02:17.8]} 20. Nc3 {[%clk 0:02:00.8]} 20... Rad8
{[%clk 0:02:15.4]} 21. Qe4 {[%clk 0:01:53.4]} 21... Qxe4 {[%clk 0:01:58.3]} 22.
Nxe4 {[%clk 0:01:54.3]} 22... f5 {[%clk 0:01:59]} 23. Nxc5 {[%clk 0:01:46.7]}
23... Rxd2 {[%clk 0:01:59.3]} 24. Ne6 {[%clk 0:01:42.6]} 24... Rf7 {[%clk
0:01:50.7]} 25. a4 {[%clk 0:01:28.5]} 25... Rxc2 {[%clk 0:01:45.7]} 26. Ra1
{[%clk 0:01:28.8]} 26... c5 {[%clk 0:01:34.1]} 27. a5 {[%clk 0:01:26.4]} 27...
Ra7 {[%clk 0:01:16.3]} 28. a6 {[%clk 0:01:25.2]} 28... Rc3 {[%clk 0:01:16]} 29.
Ra5 {[%clk 0:01:17]} 29... Rxb3 {[%clk 0:01:07.2]} 30. Nxc5 {[%clk 0:01:17.2]}
30... Rxe3 {[%clk 0:01:07]} 31. Rb5 {[%clk 0:01:15.1]} 31... h6 {[%clk 0:01:04]}
32. Kf2 {[%clk 0:01:11.3]} 32... Re5 {[%clk 0:01:01.5]} 33. Rb7 {[%clk
0:01:03.1]} 33... Ra8 {[%clk 0:00:58.1]} 34. Nd7 {[%clk 0:00:59.4]} 34... Ra5
{[%clk 0:00:47.1]} 35. Nb8 {[%clk 0:00:59.7]} 35... Kh7 {[%clk 0:00:44]} 36. Kf3
{[%clk 0:00:59.1]} 36... Ra4 {[%clk 0:00:44.3]} 37. h3 {[%clk 0:00:55.2]} 37...
Kg6 {[%clk 0:00:44.4]} 38. g3 {[%clk 0:00:51]} 38... Kf6 {[%clk 0:00:44.7]} 39.
h4 {[%clk 0:00:49.7]} 39... Ra3+ {[%clk 0:00:42.8]} 40. Kg2 {[%clk 0:00:48]}
40... g5 {[%clk 0:00:41.8]} 41. hxg5+ {[%clk 0:00:37.1]} 41... hxg5 {[%clk
0:00:42.7]} 42. Rb6+ {[%clk 0:00:36.4]} 42... Ke5 {[%clk 0:00:37.6]} 43. Rb5+
{[%clk 0:00:36]} 43... Ke4 {[%clk 0:00:36.1]} 44. Rb4+ {[%clk 0:00:29.9]} 44...
Ke3 {[%clk 0:00:36.3]} 45. Rb6 {[%clk 0:00:26.1]} 45... Ra2+ {[%clk 0:00:27]}
46. Kg1 {[%clk 0:00:25.9]} 46... Kf3 {[%clk 0:00:25]} 47. Rb3+ {[%clk
0:00:23.8]} 47... Kg4 {[%clk 0:00:25.4]} 48. Nc6 {[%clk 0:00:22.3]} 48... R8xa6
{[%clk 0:00:23.3]} 49. Ne5+ {[%clk 0:00:22.8]} 49... Kh5 {[%clk 0:00:21.4]} 50.
Rb8 {[%clk 0:00:17.3]} 50... Re2 {[%clk 0:00:20.6]} 51. Rh8+ {[%clk 0:00:12.5]}
51... Rh6 {[%clk 0:00:21.2]} 52. g4+ {[%clk 0:00:12.5]} 52... fxg4 {[%clk
0:00:20.5]} 53. Rxh6+ {[%clk 0:00:13.4]} 53... Kxh6 {[%clk 0:00:21.2]} 54. Nxg4+
{[%clk 0:00:14.2]} 54... Kh5 {[%clk 0:00:21.4]} 55. Kf1 {[%clk 0:00:14.8]} 55...
Ra2 {[%clk 0:00:13.7]} 56. Nf6+ {[%clk 0:00:14.7]} 56... Kh4 {[%clk 0:00:14]}
57. Kg1 {[%clk 0:00:14.8]} 57... g4 {[%clk 0:00:13.1]} 58. Ne4 {[%clk
0:00:15.7]} 58... g3 {[%clk 0:00:12]} 59. Kh1 {[%clk 0:00:15.6]} 59... Kg4
{[%clk 0:00:10.5]} 60. Kg1 {[%clk 0:00:15.5]} 60... Re2 {[%clk 0:00:09.6]} 61.
Nf6+ {[%clk 0:00:16]} 61... Kh3 {[%clk 0:00:09.6]} 62. Ne4 {[%clk 0:00:15.8]}
62... Rxe4 {[%clk 0:00:09.3]} 63. Kf1 {[%clk 0:00:16.1]} 63... g2+ {[%clk
0:00:09.4]} 64. Kg1 {[%clk 0:00:17]} 64... Re1+ {[%clk 0:00:09.4]} 65. Kf2
{[%clk 0:00:17.9]} 65... g1=Q+ {[%clk 0:00:10]} 66. Kf3 {[%clk 0:00:18.8]} 66...
Qf1# {[%clk 0:00:09.7]} 0-1

[Event "Late-Titled-Tuesday-Blitz-May-07-2024"]
[Site "Chess.com"]
[Date "2024.05.07"]
[Round "4"]
[White "BogdanDeac"]
[Black "DanielDardha2005"]
[Result "1-0"]
[WhiteElo "3128"]
[BlackElo "2888"]
[TimeControl "180+1"]
[EndTime "14:39:54 PDT"]
[Termination "BogdanDeac won by resignation"]

1. d4 {[%clk 0:03:00.9]} 1... d5 {[%clk 0:02:50.7]} 2. c4 {[%clk 0:03:00.2]}
2... dxc4 {[%clk 0:02:51.6]} 3. Nf3 {[%clk 0:02:59.8]} 3... Nf6 {[%clk
0:02:51.6]} 4. e3 {[%clk 0:03:00.1]} 4... e6 {[%clk 0:02:51.7]} 5. Bxc4 {[%clk
0:03:00]} 5... a6 {[%clk 0:02:52.2]} 6. O-O {[%clk 0:03:00.1]} 6... c5 {[%clk
0:02:52.3]} 7. Re1 {[%clk 0:03:00.6]} 7... Nc6 {[%clk 0:02:46.3]} 8. Nc3 {[%clk
0:03:00]} 8... b5 {[%clk 0:02:43.6]} 9. Bd3 {[%clk 0:02:59.3]} 9... Bb7 {[%clk
0:02:40]} 10. a4 {[%clk 0:02:58.8]} 10... cxd4 {[%clk 0:02:34.5]} 11. exd4
{[%clk 0:02:55.3]} 11... Be7 {[%clk 0:02:27.4]} 12. axb5 {[%clk 0:02:53.3]}
12... axb5 {[%clk 0:02:28.3]} 13. Rxa8 {[%clk 0:02:50.3]} 13... Bxa8 {[%clk
0:02:25.5]} 14. Bxb5 {[%clk 0:02:50.3]} 14... O-O {[%clk 0:02:25.6]} 15. Be3
{[%clk 0:02:22.4]} 15... Nb4 {[%clk 0:02:19.7]} 16. Ne5 {[%clk 0:02:22]} 16...
Nbd5 {[%clk 0:02:18.1]} 17. Bc6 {[%clk 0:00:58.7]} 17... Nxe3 {[%clk 0:02:09.5]}
18. fxe3 {[%clk 0:00:57]} 18... Bd6 {[%clk 0:01:55.5]} 19. Bxa8 {[%clk
0:00:55.7]} 19... Qxa8 {[%clk 0:01:56.4]} 20. Nf3 {[%clk 0:00:54.5]} 20... Rb8
{[%clk 0:01:54.2]} 21. Qe2 {[%clk 0:00:49.6]} 21... Qb7 {[%clk 0:01:51.1]} 22.
Rb1 {[%clk 0:00:41.9]} 22... h6 {[%clk 0:01:48.6]} 23. Nd1 {[%clk 0:00:37.2]}
23... Qe4 {[%clk 0:01:32.2]} 24. Rc1 {[%clk 0:00:30.6]} 24... Nd5 {[%clk
0:01:32]} 25. Qc2 {[%clk 0:00:27]} 25... Qg4 {[%clk 0:01:19.3]} 26. Nf2 {[%clk
0:00:22.9]} 26... Qh5 {[%clk 0:01:07.6]} 27. g4 {[%clk 0:00:20.1]} 27... Qg6
{[%clk 0:01:02.4]} 28. Qxg6 {[%clk 0:00:19.7]} 28... fxg6 {[%clk 0:01:03.3]} 29.
Nd1 {[%clk 0:00:19.6]} 29... Rb3 {[%clk 0:00:57.2]} 30. Kf2 {[%clk 0:00:18.4]}
30... g5 {[%clk 0:00:36.8]} 31. h3 {[%clk 0:00:15.7]} 31... Kf7 {[%clk 0:00:28]}
32. Nd2 {[%clk 0:00:12.3]} 32... Rb7 {[%clk 0:00:23.2]} 33. Nc4 {[%clk 0:00:11]}
33... Bb8 {[%clk 0:00:22.3]} 34. Nc3 {[%clk 0:00:09.6]} 34... Nb4 {[%clk
0:00:17.5]} 35. Ke2 {[%clk 0:00:09.2]} 35... Ra7 {[%clk 0:00:17.9]} 36. Ne4
{[%clk 0:00:08.8]} 36... Ke7 {[%clk 0:00:17.7]} 37. Nc5 {[%clk 0:00:08.7]} 37...
Nd5 {[%clk 0:00:15.2]} 38. Nd3 {[%clk 0:00:07.6]} 38... Ra2 {[%clk 0:00:14.7]}
39. Kd2 {[%clk 0:00:07.6]} 39... Bc7 {[%clk 0:00:12.2]} 40. Kc2 {[%clk
0:00:06.7]} 40... Ra8 {[%clk 0:00:11.9]} 41. Kd2 {[%clk 0:00:06.7]} 41... Ra2
{[%clk 0:00:11.6]} 42. Ke2 {[%clk 0:00:05.7]} 42... Nf6 {[%clk 0:00:07.6]} 43.
Rc2 {[%clk 0:00:04.3]} 43... Ra1 {[%clk 0:00:07.5]} 44. Nce5 {[%clk 0:00:04.4]}
44... Bxe5 {[%clk 0:00:06.9]} 45. Nxe5 {[%clk 0:00:04.5]} 45... Rh1 {[%clk
0:00:07.7]} 46. Rc7+ {[%clk 0:00:04.6]} 46... Kd6 {[%clk 0:00:07.4]} 47. Rxg7
{[%clk 0:00:03.9]} 47... Rxh3 {[%clk 0:00:06.8]} 48. Rf7 {[%clk 0:00:04.3]}
48... Rh2+ {[%clk 0:00:05.3]} 49. Kd3 {[%clk 0:00:03.7]} 49... Rxb2 {[%clk
0:00:01.6]} 50. Rxf6 {[%clk 0:00:03.5]} 50... Rb3+ {[%clk 0:00:01.8]} 51. Ke2
{[%clk 0:00:03.8]} 51... Kd5 {[%clk 0:00:02.2]} 52. Kf3 {[%clk 0:00:03.6]} 52...
h5 {[%clk 0:00:00.9]} 53. gxh5 {[%clk 0:00:03.9]} 53... g4+ {[%clk 0:00:01.6]}
54. Nxg4 {[%clk 0:00:04.5]} 54... Ra3 {[%clk 0:00:02]} 55. h6 {[%clk 0:00:05]}
55... Ra1 {[%clk 0:00:01.9]} 56. Rg6 {[%clk 0:00:05.4]} 56... Rf1+ {[%clk
0:00:02]} 57. Kg2 {[%clk 0:00:05.6]} 57... Rf7 {[%clk 0:00:02.4]} 58. Rg7 {[%clk
0:00:05.9]} 58... Rf8 {[%clk 0:00:01.8]} 59. h7 {[%clk 0:00:06.3]} 59... Rh8
{[%clk 0:00:02.2]} 60. Rg8 {[%clk 0:00:06.7]} 1-0

[Event "Late-Titled-Tuesday-Blitz-May-07-2024"]
[Site "Chess.com"]
[Date "2024.05.07"]
[Round "4"]
[White "OparinGrigoriy"]
[Black "Abund"]
[Result "0-1"]
[WhiteElo "2983"]
[BlackElo "2768"]
[TimeControl "180+1"]
[EndTime "14:39:57 PDT"]
[Termination "Abund won by resignation"]

1. Nf3 {[%clk 0:03:00.9]} 1... d5 {[%clk 0:03:00.4]} 2. g3 {[%clk 0:03:01.7]}
2... c5 {[%clk 0:03:00.4]} 3. Bg2 {[%clk 0:03:02.2]} 3... Nc6 {[%clk 0:03:01.1]}
4. d4 {[%clk 0:03:02.6]} 4... Nf6 {[%clk 0:03:01.4]} 5. O-O {[%clk 0:03:02.3]}
5... e6 {[%clk 0:03:00.6]} 6. c4 {[%clk 0:03:01.6]} 6... dxc4 {[%clk 0:03:01.5]}
7. Qa4 {[%clk 0:03:01.6]} 7... Bd7 {[%clk 0:03:01.3]} 8. Qxc4 {[%clk 0:03:01.2]}
8... b5 {[%clk 0:03:02]} 9. Qd3 {[%clk 0:03:01.1]} 9... c4 {[%clk 0:03:02.1]}
10. Qd1 {[%clk 0:03:01.7]} 10... Rc8 {[%clk 0:03:00.7]} 11. Bf4 {[%clk
0:03:01.3]} 11... Be7 {[%clk 0:02:53.4]} 12. Nc3 {[%clk 0:02:58.2]} 12... Qb6
{[%clk 0:02:38.9]} 13. a4 {[%clk 0:02:53.5]} 13... b4 {[%clk 0:02:29.4]} 14. Nb5
{[%clk 0:02:48.1]} 14... Na5 {[%clk 0:02:20.1]} 15. d5 {[%clk 0:02:15.2]} 15...
Nxd5 {[%clk 0:02:04.3]} 16. Be5 {[%clk 0:02:15.2]} 16... Nb3 {[%clk 0:01:49.6]}
17. Bxg7 {[%clk 0:02:08.6]} 17... Rg8 {[%clk 0:01:49.2]} 18. Bd4 {[%clk
0:02:09.3]} 18... Qb7 {[%clk 0:01:13.3]} 19. Rb1 {[%clk 0:01:56.1]} 19... a6
{[%clk 0:01:12.4]} 20. e4 {[%clk 0:01:51.4]} 20... axb5 {[%clk 0:00:59.2]} 21.
exd5 {[%clk 0:01:51.4]} 21... Qxd5 {[%clk 0:00:58.1]} 22. axb5 {[%clk
0:01:45.7]} 22... Bxb5 {[%clk 0:00:54.7]} 23. Re1 {[%clk 0:01:46.1]} 23... Bc6
{[%clk 0:00:47.1]} 24. Be5 {[%clk 0:01:30.1]} 24... Qxd1 {[%clk 0:00:35.3]} 25.
Rbxd1 {[%clk 0:01:31]} 25... Rd8 {[%clk 0:00:28.8]} 26. Rxd8+ {[%clk 0:01:24]}
26... Kxd8 {[%clk 0:00:29]} 27. Bf4 {[%clk 0:00:51.8]} 27... Bf6 {[%clk
0:00:20.9]} 28. Ne5 {[%clk 0:00:26.5]} 28... Bxe5 {[%clk 0:00:19.7]} 29. Bxe5
{[%clk 0:00:27]} 29... Bxg2 {[%clk 0:00:17.7]} 30. Kxg2 {[%clk 0:00:26.6]} 30...
Kd7 {[%clk 0:00:10.9]} 31. Rd1+ {[%clk 0:00:25.8]} 31... Kc6 {[%clk 0:00:11.5]}
32. Rd6+ {[%clk 0:00:26.4]} 32... Kb5 {[%clk 0:00:07]} 33. Rd7 {[%clk
0:00:26.1]} 33... Rg5 {[%clk 0:00:03.6]} 34. Bh8 {[%clk 0:00:19.1]} 34... Rf5
{[%clk 0:00:03.4]} 35. g4 {[%clk 0:00:16.4]} 35... Rd5 {[%clk 0:00:03.6]} 36.
Rxf7 {[%clk 0:00:12.3]} 36... Nd4 {[%clk 0:00:03.1]} 37. Rc7 {[%clk 0:00:08.5]}
37... Nc6 {[%clk 0:00:02]} 38. Rxh7 {[%clk 0:00:06.3]} 38... Rd2 {[%clk
0:00:01.6]} 39. Rb7+ {[%clk 0:00:06.4]} 39... Kc5 {[%clk 0:00:01.9]} 40. Rc7
{[%clk 0:00:06.6]} 40... e5 {[%clk 0:00:01.1]} 41. Bxe5 {[%clk 0:00:05]} 41...
Kb6 {[%clk 0:00:01.7]} 42. Bf4 {[%clk 0:00:05]} 42... Rxb2 {[%clk 0:00:01.6]}
43. g5 {[%clk 0:00:05.7]} 43... c3 {[%clk 0:00:01.9]} 44. g6 {[%clk 0:00:05.9]}
44... Re2 {[%clk 0:00:01.8]} 45. g7 {[%clk 0:00:06.1]} 45... Re8 {[%clk
0:00:02.4]} 46. Rf7 {[%clk 0:00:06.2]} 46... Rg8 {[%clk 0:00:02.7]} 47. h4
{[%clk 0:00:06.5]} 47... b3 {[%clk 0:00:03.1]} 48. h5 {[%clk 0:00:04.8]} 48...
b2 {[%clk 0:00:03.5]} 49. h6 {[%clk 0:00:01.8]} 49... b1=Q {[%clk 0:00:03.9]}
50. Rf8 {[%clk 0:00:02.5]} 50... Qg6+ {[%clk 0:00:04.5]} 51. Bg3 {[%clk
0:00:02.2]} 51... Rxg7 {[%clk 0:00:04.5]} 52. hxg7 {[%clk 0:00:02.2]} 52... Qxg7
{[%clk 0:00:05.4]} 53. Rf3 {[%clk 0:00:02.4]} 53... Qd4 {[%clk 0:00:04.7]} 54.
Rf4 {[%clk 0:00:02.5]} 54... Qd5+ {[%clk 0:00:04.8]} 55. Kh2 {[%clk 0:00:02.5]}
55... c2 {[%clk 0:00:05.3]} 56. Rf3 {[%clk 0:00:02.3]} 56... c1=Q {[%clk
0:00:05.4]} 0-1

[Event "Late-Titled-Tuesday-Blitz-May-07-2024"]
[Site "Chess.com"]
[Date "2024.05.07"]
[Round "4"]
[White "mbojan"]
[Black "MagnusCarlsen"]
[Result "0-1"]
[WhiteElo "2897"]
[BlackElo "3212"]
[TimeControl "180+1"]
[EndTime "14:39:59 PDT"]
[Termination "MagnusCarlsen won by resignation"]

1. a3 {[%clk 0:02:47.8]} 1... g6 {[%clk 0:03:00.9]} 2. g3 {[%clk 0:02:47.6]}
2... Bg7 {[%clk 0:02:40.2]} 3. Bg2 {[%clk 0:02:48.1]} 3... Nf6 {[%clk
0:02:40.8]} 4. d3 {[%clk 0:02:48.6]} 4... O-O {[%clk 0:02:41.3]} 5. Bd2 {[%clk
0:02:49.4]} 5... d5 {[%clk 0:02:39.1]} 6. Qc1 {[%clk 0:02:49.9]} 6... h5 {[%clk
0:02:39.3]} 7. Bh6 {[%clk 0:02:48.1]} 7... c5 {[%clk 0:02:39.3]} 8. Nc3 {[%clk
0:02:46.7]} 8... Nc6 {[%clk 0:02:38.9]} 9. Bxg7 {[%clk 0:02:36.2]} 9... Kxg7
{[%clk 0:02:37]} 10. Nf3 {[%clk 0:02:28.2]} 10... d4 {[%clk 0:02:36.4]} 11. Nd1
{[%clk 0:02:28.4]} 11... e5 {[%clk 0:02:35.6]} 12. O-O {[%clk 0:02:27.5]} 12...
Re8 {[%clk 0:02:34.3]} 13. c3 {[%clk 0:02:07.2]} 13... e4 {[%clk 0:02:32.7]} 14.
dxe4 {[%clk 0:02:06.8]} 14... Nxe4 {[%clk 0:02:33.6]} 15. cxd4 {[%clk
0:02:02.2]} 15... cxd4 {[%clk 0:02:34.5]} 16. e3 {[%clk 0:01:52.6]} 16... d3
{[%clk 0:02:30.1]} 17. Nc3 {[%clk 0:01:51.2]} 17... Bf5 {[%clk 0:02:25.2]} 18.
Rd1 {[%clk 0:01:44.5]} 18... Qf6 {[%clk 0:02:20.7]} 19. Nd5 {[%clk 0:01:35.3]}
19... Qd6 {[%clk 0:01:59]} 20. Rxd3 {[%clk 0:01:24.8]} 20... Nxf2 {[%clk
0:01:56.6]} 21. Qc3+ {[%clk 0:01:24.6]} 21... Ne5 {[%clk 0:01:56.5]} 22. Nxe5
{[%clk 0:01:19]} 22... Qxe5 {[%clk 0:01:57.4]} 23. Kxf2 {[%clk 0:01:12.9]} 23...
Bxd3 {[%clk 0:01:56.2]} 24. Nc7 {[%clk 0:01:00.6]} 24... Qxc3 {[%clk 0:01:40.1]}
25. bxc3 {[%clk 0:00:53.8]} 25... Rac8 {[%clk 0:01:30.5]} 26. Nxe8+ {[%clk
0:00:54]} 26... Rxe8 {[%clk 0:01:31.4]} 27. Rd1 {[%clk 0:00:49.9]} 27... Be4
{[%clk 0:01:19.5]} 28. Bxe4 {[%clk 0:00:43.4]} 28... Rxe4 {[%clk 0:01:20.4]} 29.
Rd7 {[%clk 0:00:43.8]} 29... Ra4 {[%clk 0:01:20.1]} 30. Rxb7 {[%clk 0:00:44.1]}
30... Rxa3 {[%clk 0:01:20.6]} 31. h4 {[%clk 0:00:42.7]} 31... a5 {[%clk
0:01:16.1]} 32. Ra7 {[%clk 0:00:42.4]} 32... Kf6 {[%clk 0:01:15.9]} 33. Kf3
{[%clk 0:00:42.7]} 33... a4 {[%clk 0:01:13.8]} 34. c4 {[%clk 0:00:42.9]} 34...
Ke6 {[%clk 0:01:13]} 35. Ra6+ {[%clk 0:00:33]} 35... Ke5 {[%clk 0:01:09.5]} 36.
Ra7 {[%clk 0:00:30]} 36... Ra1 {[%clk 0:01:09.3]} 37. Kg2 {[%clk 0:00:21.9]}
37... f5 {[%clk 0:01:07.4]} 38. Kf3 {[%clk 0:00:14]} 38... a3 {[%clk 0:01:06.7]}
39. Ra5+ {[%clk 0:00:09.2]} 39... Kd6 {[%clk 0:01:05.6]} 40. Kf4 {[%clk
0:00:03.1]} 40... a2 {[%clk 0:00:34.8]} 41. Kg5 {[%clk 0:00:03.3]} 41... Rg1
{[%clk 0:00:34.3]} 42. Rxa2 {[%clk 0:00:02.2]} 42... Ke5 {[%clk 0:00:29.5]} 43.
Ra6 {[%clk 0:00:01.3]} 43... Rxg3+ {[%clk 0:00:29.6]} 44. Kh6 {[%clk 0:00:02]}
44... Rxe3 {[%clk 0:00:27.6]} 45. Kxg6 {[%clk 0:00:02]} 45... f4 {[%clk
0:00:28.5]} 46. Kxh5 {[%clk 0:00:02]} 46... f3 {[%clk 0:00:28.6]} 47. Ra8 {[%clk
0:00:01.8]} 47... Kf4 {[%clk 0:00:18.8]} 48. Rf8+ {[%clk 0:00:02.4]} 48... Kg3
{[%clk 0:00:19]} 49. Kg5 {[%clk 0:00:03.3]} 49... Re5+ {[%clk 0:00:18.8]} 50.
Kg6 {[%clk 0:00:04]} 50... Re4 {[%clk 0:00:16.5]} 51. Rxf3+ {[%clk 0:00:04.2]}
51... Kxf3 {[%clk 0:00:15.8]} 52. h5 {[%clk 0:00:05.1]} 52... Kg4 {[%clk
0:00:16.2]} 53. h6 {[%clk 0:00:05.5]} 53... Re6+ {[%clk 0:00:15.7]} 54. Kg7
{[%clk 0:00:06]} 54... Kg5 {[%clk 0:00:16]} 55. h7 {[%clk 0:00:05.8]} 55... Re7+
{[%clk 0:00:15.8]} 56. Kg8 {[%clk 0:00:06.3]} 56... Kg6 {[%clk 0:00:16.1]} 57.
h8=N+ {[%clk 0:00:05.7]} 57... Kf6 {[%clk 0:00:16.2]} 58. c5 {[%clk 0:00:06.4]}
58... Rg7+ {[%clk 0:00:14.3]} 59. Kf8 {[%clk 0:00:06.6]} 59... Rc7 {[%clk
0:00:14.9]} 60. Kg8 {[%clk 0:00:04.5]} 60... Rxc5 {[%clk 0:00:14.9]} 61. Kh7
{[%clk 0:00:05.2]} 61... Rc7+ {[%clk 0:00:11.6]} 62. Kh6 {[%clk 0:00:05.4]}
62... Rg7 {[%clk 0:00:10.4]} 0-1